lending/lending_fUSD_20250406
["ID","MTS","AMOUNT","RATE_DAILY","PERIOD"]
[357213999,1743900643292,-500.0,0.00030136,2]
[357214000,1743900643303,-525.25055301,0.00030136,2]
[357214001,1743900643314,-500.0,0.00030136,2]
[357214002,1743900643324,-500.0,0.00030136,2]
[357214003,1743900643335,-500.0,0.00030136,2]
[357214004,1743900643346,-506.69847869,0.00030136,2]
[357214005,1743900643357,-500.0,0.00030136,2]
[357214006,1743900643367,-511.57825979,0.00030136,2]
[357214007,1743900643378,-513.19253225,0.00030136,2]
[357214008,1743900643388,-500.0,0.00030136,2]
[357214009,1743900643399,-508.81735139,0.00030136,2]
[357214010,1743900643410,-500.0,0.00030136,2]
[357214011,1743900643423,-500.0,0.00030136,2]
[357214012,1743900643434,-525.46999234,0.00030136,2]
[357214013,1743900643445,-500.0,0.00030136,2]
[357214014,1743900643460,-509.24998448,0.00030136,2]
[357214015,1743900643471,-513.52402015,0.00030136,2]
[357214016,1743900643482,-500.0,0.00030136,2]
[357214017,1743900643493,-500.0,0.00030136,2]
[357214018,1743900643502,-500.0,0.00030136,2]
[357214019,1743900643512,-500.0,0.00030136,2]
[357214020,1743900643522,-500.0,0.00030136,2]
[357214021,1743900643532,-500.0,0.00030136,2]
[357214022,1743900643543,-517.77717569,0.00030136,2]
[357214023,1743900643554,-500.0,0.00030136,2]
[357214024,1743900643566,-500.0,0.00030136,2]
[357214025,1743900643578,-508.45618544,0.00030136,2]
[357214026,1743900643588,-505.83241189,0.00030136,2]
[357214027,1743900643598,-500.0,0.00030136,2]
[357214028,1743900643608,-500.0,0.00030136,2]
[357214029,1743900643617,-550.53946758,0.00030136,2]
[357214030,1743900643627,-500.0,0.00030136,2]
[357214031,1743900643637,-500.0,0.00030136,2]
[357214032,1743900643649,-500.0,0.00030136,2]
[357214033,1743900643660,-500.0,0.00030136,2]
[357214034,1743900643671,-500.0,0.00030136,2]
[357214035,1743900643683,-521.34806053,0.00030136,2]
[357214036,1743900643694,-500.0,0.00030136,2]
[357214037,1743900643704,-500.0,0.00030136,2]
[357214038,1743900643714,-625.16203822,0.00030136,2]
[357214039,1743900643725,-500.0,0.00030136,2]
[357214040,1743900643735,-517.104436,0.00030136,2]
[357214041,1743900643745,-513.06634644,0.00030136,2]
[357214042,1743900643755,-500.0,0.00030136,2]
[357214043,1743900643765,-508.16612048,0.00030136,2]
[357214044,1743900643775,-500.0,0.00030136,2]
[357214045,1743900643785,-500.0,0.00030136,2]
[357214046,1743900643795,-507.21757606,0.00030136,2]
[357214047,1743900643805,-266.35560013,0.00030136,2]
[357214048,1743900643816,-500.0,0.00030136,2]
[357214049,1743900643826,-500.0,0.00030136,2]
[357214050,1743900643837,-500.0,0.00030136,2]
[357214051,1743900643847,-520.85745833,0.00030136,2]
[357214052,1743900643858,-500.0,0.00030136,2]
[357214053,1743900643868,-500.0,0.00030136,2]
[357214054,1743900643878,-520.24134621,0.00030136,2]
[357214055,1743900643890,-250.00777892,0.00030136,2]
[357214056,1743900643900,-510.5081526,0.00030136,2]
[357214057,1743900643910,-503.02119422,0.00030136,2]
[357214058,1743900643920,-500.0,0.00030136,2]
[357214059,1743900643931,-500.0,0.00030136,2]
[357214060,1743900643942,-500.0,0.00030136,2]
[357214061,1743900643952,-500.0,0.00030136,2]
[357214062,1743900643962,-500.0,0.00030136,2]
[357214063,1743900643973,-507.79037273,0.00030136,2]
[357214064,1743900643984,-508.24022279,0.00030136,2]
[357214065,1743900643994,-527.6968441,0.00030136,2]
[357214066,1743900644004,-500.0,0.00030136,2]
[357214067,1743900644014,-500.0,0.00030136,2]
[357214068,1743900644026,-508.33620868,0.00030136,2]
[357214069,1743900644036,-502.34793621,0.00030136,2]
[357214070,1743900644046,-505.16843428,0.00030136,2]
[357214071,1743900644057,-529.69339741,0.00030136,2]
[357214072,1743900644068,-512.10120459,0.00030136,2]
[357214073,1743900644078,-511.56769437,0.00030136,2]
[357214074,1743900644089,-510.35941763,0.00030136,2]
[357214075,1743900644100,-500.0,0.00030136,2]
[357214076,1743900644110,-500.0,0.00030136,2]
[357214077,1743900644121,-500.0,0.00030136,2]
[357214078,1743900644132,-500.0,0.00030136,2]
[357214079,1743900644143,-500.0,0.00030136,2]
[357214080,1743900644153,-516.5036726,0.00030136,2]
[357214081,1743900644163,-512.3323488,0.00030136,2]
[357214082,1743900644174,-500.0,0.00030136,2]
[357214083,1743900644185,-541.07274743,0.00030136,2]
[357214084,1743900644196,-500.0,0.00030136,2]
[357214085,1743900644208,-500.0,0.00030136,2]
[357214086,1743900644219,-500.0,0.00030136,2]
[357214087,1743900644231,-528.91794588,0.00030136,2]
[357214088,1743900644242,-517.95936593,0.00030136,2]
[357214089,1743900644252,-516.09266075,0.00030136,2]
[357214090,1743900644262,-519.89918623,0.00030136,2]
[357214091,1743900644273,-500.0,0.00030136,2]
[357214092,1743900644283,-500.0,0.00030136,2]
[357214093,1743900644294,-500.0,0.00030136,2]
[357214094,1743900644305,-516.91437585,0.00030136,2]
[357214095,1743900644315,-153.68996381,0.00030136,2]
[357214096,1743900644324,-500.0,0.00030136,2]
[357214097,1743900644335,-500.0,0.00030136,2]
[357214098,1743900644345,-503.22547605,0.00030136,2]
[357214099,1743900644355,-511.63051385,0.00030136,2]
[357214100,1743900644365,-5118.78448625,0.00030136,2]
[357214101,1743900644375,-506.08294856,0.00030136,2]
[357214102,1743900644384,-555.91421778,0.00030136,2]
[357214103,1743900644392,-500.0,0.00030136,2]
[357214104,1743900644401,-526.78276193,0.00030136,2]
[357214105,1743900644409,-504.19610242,0.00030136,2]
[357214106,1743900644417,-509.70303458,0.00030136,2]
[357214107,1743900644426,-508.37852574,0.00030136,2]
[357214108,1743900644436,-500.0,0.00030136,2]
[357214109,1743900644609,-525.84150661,0.00030136,2]
[357214110,1743900644623,-500.0,0.00030136,2]
[357214111,1743900644634,-500.0,0.00030136,2]
[357214112,1743900644644,-500.0,0.00030136,2]
[357214113,1743900644657,-419.91186277,0.00030136,2]
[357214114,1743900644666,-500.0,0.00030136,2]
[357214115,1743900644676,-549.57163666,0.00030136,2]
[357214116,1743900644687,-500.0,0.00030136,2]
[357214117,1743900644696,-527.63993777,0.00030136,2]
[357214118,1743900644705,-519.49296212,0.00030136,2]
[357214119,1743900644714,-504.45535021,0.00030136,2]
[357214120,1743900644724,-509.41021025,0.00030136,2]
[357214121,1743900644733,-505.86040666,0.00030136,2]
[357214122,1743900644742,-500.0,0.00030136,2]
[357214123,1743900644751,-513.07251488,0.00030136,2]
[357214124,1743900644761,-500.0,0.00030136,2]
[357214125,1743900644770,-519.62145628,0.00030136,2]
[357214126,1743900644779,-507.1141183,0.00030136,2]
[357214127,1743900644788,-510.65750852,0.00030136,2]
[357214128,1743900644797,-531.39474744,0.00030136,2]
[357214129,1743900644807,-508.28439278,0.00030136,2]
[357214130,1743900644816,-503.6951467,0.00030136,2]
[357214131,1743900644825,-507.81346978,0.00030136,2]
[357214132,1743900644835,-529.7596559,0.00030136,2]
[357214133,1743900644844,-500.0,0.00030136,2]
[357214134,1743900644853,-536.71142715,0.00030136,2]
[357214135,1743900644862,-500.0,0.00030136,2]
[357214136,1743900644872,-335.73737279,0.00030136,2]
[357214137,1743900644881,-644.02114723,0.00030136,2]
[357214138,1743900644890,-575.75501639,0.00030136,2]
[357214139,1743900644899,-500.0,0.00030136,2]
[357214140,1743900644908,-508.75430924,0.00030136,2]
[357214141,1743900644917,-522.12636492,0.00030136,2]
[357214142,1743900644927,-508.08011087,0.00030136,2]
[357214143,1743900644936,-511.08835319,0.00030136,2]
[357214144,1743900644945,-500.0,0.00030136,2]
[357214145,1743900644954,-513.21988476,0.00030136,2]
[357214146,1743900644962,-506.01340344,0.00030136,2]
[357214147,1743900644971,-514.60096779,0.00030136,2]
[357214148,1743900644980,-569.45218777,0.00030136,2]
[357214149,1743900644989,-500.0,0.00030136,2]
[357214150,1743900644998,-500.0,0.00030136,2]
[357214151,1743900645007,-528.25147061,0.00030136,2]
[357214152,1743900645016,-534.40297966,0.00030136,2]
[357214153,1743900645025,-500.0,0.00030136,2]
[357214154,1743900645034,-500.0,0.00030136,2]
[357214155,1743900645043,-502.44031607,0.00030136,2]
[357214156,1743900645051,-500.0,0.00030136,2]
[357214157,1743900645060,-507.3694766,0.00030136,2]
[357214158,1743900645069,-500.0,0.00030136,2]
[357214159,1743900645078,-520.82207226,0.00030136,2]
[357214160,1743900645087,-500.0,0.00030136,2]
[357214161,1743900645096,-514.65431111,0.00030136,2]
[357214162,1743900645106,-503.15962748,0.00030136,2]
[357214163,1743900645115,-518.8021181,0.00030136,2]
[357214164,1743900645124,-500.0,0.00030136,2]
[357214165,1743900645134,-526.95907581,0.00030136,2]
[357214166,1743900645143,-525.27678245,0.00030136,2]
[357214167,1743900645152,-500.0,0.00030136,2]
[357214168,1743900645161,-510.5200197,0.00030136,2]
[357214169,1743900645171,-500.0,0.00030136,2]
[357214170,1743900645180,-500.0,0.00030136,2]
[357214171,1743900645190,-500.0,0.00030136,2]
[357214172,1743900645199,-500.0,0.00030136,2]
[357214173,1743900645209,-500.0,0.00030136,2]
[357214174,1743900645219,-500.0,0.00030136,2]
[357214175,1743900645228,-500.0,0.00030136,2]
[357214176,1743900645237,-521.27420829,0.00030136,2]
[357214177,1743900645246,-500.0,0.00030136,2]
[357214178,1743900645255,-511.17087068,0.00030136,2]
[357214179,1743900645265,-500.0,0.00030136,2]
[357214180,1743900645274,-500.0,0.00030136,2]
[357214181,1743900645283,-358.73733384,0.00030136,2]
[357214182,1743900645293,-578.74370153,0.00030136,2]
[357214183,1743900645302,-500.0,0.00030136,2]
[357214184,1743900645311,-500.0,0.00030136,2]
[357214185,1743900645320,-500.0,0.00030136,2]
[357214186,1743900645330,-504.38826734,0.00030136,2]
[357214187,1743900645339,-500.0,0.00030136,2]
[357214188,1743900645356,-500.0,0.00030136,2]
[357214189,1743900645368,-513.92602026,0.00030136,2]
[357214190,1743900645379,-539.51556691,0.00030136,2]
[357214192,1743900645389,-500.0,0.00030136,2]
[357214193,1743900645399,-500.0,0.00030136,2]
[357214194,1743900645409,-537.39354395,0.00030136,2]
[357214195,1743900645419,-500.0,0.00030136,2]
[357214196,1743900645429,-513.71785263,0.00030136,2]
[357214197,1743900645439,-500.0,0.00030136,2]
[357214198,1743900645449,-504.2529706,0.00030136,2]
[357214199,1743900645459,-500.0,0.00030136,2]
[357214200,1743900645468,-500.0,0.00030136,2]
[357214201,1743900645478,-532.88741414,0.00030136,2]
[357214202,1743900645487,-531.35079814,0.00030136,2]
[357214203,1743900645497,-500.0,0.00030136,2]
[357214204,1743900645507,-525.30578907,0.00030136,2]
[357214205,1743900645517,-500.0,0.00030136,2]
[357214206,1743900645526,-500.0,0.00030136,2]
[357214207,1743900645537,-500.0,0.00030136,2]
[357214208,1743900645546,-533.86291561,0.00030136,2]
[357214209,1743900645556,-500.0,0.00030136,2]
[357214210,1743900645566,-513.22466243,0.00030136,2]
[357214211,1743900645576,-500.0,0.00030136,2]
[357214212,1743900645586,-567.53311532,0.00030136,2]
[357214213,1743900645595,-500.0,0.00030136,2]
[357214214,1743900645605,-508.48356023,0.00030136,2]
[357214215,1743900645614,-563.59972521,0.00030136,2]
[357214216,1743900645624,-509.50712034,0.00030136,2]
[357214217,1743900645633,-524.74610036,0.00030136,2]
[357214218,1743900645643,-500.0,0.00030136,2]
[357214219,1743900645658,-540.00046033,0.00030136,2]
[357214220,1743900645668,-516.20788152,0.00030136,88]
[357214221,1743900645678,-505.73646463,0.00030136,2]
[357214222,1743900645688,-509.40959201,0.00030136,2]
[357214223,1743900645697,-508.32025515,0.00030136,2]
[357214224,1743900645707,-500.0,0.00030136,2]
[357214225,1743900645716,-500.0,0.00030136,2]
[357214226,1743900645726,-500.0,0.00030136,2]
[357214227,1743900645735,-533.0288932,0.00030136,2]
[357214228,1743900645744,-500.0,0.00030136,2]
[357214229,1743900645754,-505.53603519,0.00030136,2]
[357214230,1743900645763,-500.0,0.00030136,2]
[357214231,1743900645773,-500.0,0.00030136,2]
[357214232,1743900645782,-498.08327618,0.00030136,2]
[357214233,1743900645792,-500.0,0.00030136,2]
[357214234,1743900645801,-500.0,0.00030136,2]
[357214235,1743900645811,-505.18298115,0.00030136,2]
[357214236,1743900645821,-515.35551649,0.00030136,2]
[357214237,1743900645830,-548.1589485,0.00030136,2]
[357214238,1743900645839,-538.0082809,0.00030136,2]
[357214239,1743900645849,-500.0,0.00030136,2]
[357214240,1743900645858,-511.40677429,0.00030136,2]
[357214241,1743900645868,-503.04602052,0.00030136,2]
[357214242,1743900645878,-500.0,0.00030136,2]
[357214243,1743900645887,-501.28079609,0.00030136,2]
[357214244,1743900645897,-511.11320989,0.00030136,2]
[357214245,1743900645907,-509.13340703,0.00030136,2]
[357214246,1743900645916,-500.0,0.00030136,2]
[357214247,1743900645926,-532.85084045,0.00030136,2]
[357214248,1743900645935,-500.0,0.00030136,2]
[357214249,1743900645945,-500.0,0.00030136,2]
[357214250,1743900645955,-500.0,0.00030136,2]
[357214251,1743900645964,-500.0,0.00030136,2]
[357214252,1743900645974,-518.77294444,0.00030136,2]
[357214253,1743900645984,-191.94172252,0.00030136,2]
[357214254,1743900645993,-544.30129718,0.00030136,2]
[357214255,1743900646003,-500.0,0.00030136,2]
[357214256,1743900646012,-547.78515397,0.00030136,2]
[357214257,1743900646021,-585.48130367,0.00030136,2]
[357214259,1743900646031,-531.57265854,0.00030136,2]
[357214262,1743900646040,-500.0,0.00030136,2]
[357214264,1743900646050,-523.69889083,0.00030136,2]
[357214266,1743900646060,-550.62989531,0.00030136,2]
[357214268,1743900646069,-500.0,0.00030136,2]
[357214269,1743900646079,-500.0,0.00030136,2]
[357214270,1743900646089,-510.6274634,0.00030136,2]
[357214271,1743900646098,-507.2041937,0.00030136,2]
[357214272,1743900646108,-528.51735298,0.00030136,2]
[357214273,1743900646119,-500.0,0.00030136,2]
[357214274,1743900646130,-530.07349709,0.00030136,2]
[357214275,1743900646140,-499.53835418,0.00030136,2]
[357214276,1743900646151,-528.08023265,0.00030136,2]
[357214277,1743900646161,-500.0,0.00030136,2]
[357214278,1743900646171,-533.54266118,0.00030136,2]
[357214279,1743900646181,-500.0,0.00030136,2]
[357214280,1743900646192,-518.92656086,0.00030136,2]
[357214281,1743900646202,-500.0,0.00030136,2]
[357214282,1743900646212,-502.57674191,0.00030136,2]
[357214283,1743900646223,-506.23781611,0.00030136,2]
[357214284,1743900646233,-500.0,0.00030136,2]
[357214285,1743900646244,-544.63359581,0.00030136,2]
[357214286,1743900646254,-500.0,0.00030136,2]
[357214287,1743900646263,-540.06612147,0.00030136,2]
[357214288,1743900646273,-500.0,0.00030136,2]
[357214289,1743900646283,-517.07677421,0.00030136,2]
[357214290,1743900646293,-513.92840069,0.00030136,2]
[357214291,1743900646303,-500.0,0.00030136,2]
[357214292,1743900646313,-586.65761918,0.00030136,2]
[357214293,1743900646322,-500.0,0.00030136,2]
[357214294,1743900646332,-501.80137291,0.00030136,2]
[357214295,1743900646343,-510.01993929,0.00030136,2]
[357214296,1743900646352,-504.85776083,0.00030136,2]
[357214297,1743900646362,-507.75610472,0.00030136,2]
[357214298,1743900646372,-516.55584019,0.00030136,2]
[357214299,1743900646382,-500.0,0.00030136,2]
[357214300,1743900646392,-520.89898251,0.00030136,2]
[357214301,1743900646402,-500.0,0.00030136,2]
[357214302,1743900646411,-505.76001783,0.00030136,2]
[357214303,1743900646421,-500.95599673,0.00030136,2]
[357214304,1743900646431,-500.0,0.00030136,2]
[357214305,1743900646441,-500.0,0.00030136,2]
[357214306,1743900646451,-513.85895329,0.00030136,2]
[357214307,1743900646461,-500.0,0.00030136,2]
[357214308,1743900646470,-508.62367757,0.00030136,2]
[357214309,1743900646480,-502.80582111,0.00030136,2]
[357214310,1743900646489,-500.0,0.00030136,2]
[357214311,1743900646499,-500.0,0.00030136,2]
[357214312,1743900646509,-527.07461331,0.00030136,2]
[357214313,1743900646518,-500.0,0.00030136,2]
[357214314,1743900646528,-502.04955842,0.00030136,2]
[357214315,1743900646538,-500.0,0.00030136,2]
[357214316,1743900646548,-500.0,0.00030136,2]
[357214317,1743900646558,-500.0,0.00030136,2]
[357214318,1743900646568,-500.0,0.00030136,2]
[357214319,1743900646577,-500.0,0.00030136,2]
[357214320,1743900646586,-500.0,0.00030136,2]
[357214321,1743900646595,-500.0,0.00030136,2]
[357214322,1743900646605,-500.0,0.00030136,2]
[357214323,1743900646614,-500.0,0.00030136,2]
[357214324,1743900646623,-514.00498467,0.00030136,2]
[357214325,1743900646633,-528.34457471,0.00030136,2]
[357214326,1743900646642,-539.6816392,0.00030136,2]
[357214327,1743900646655,-512.55635912,0.00030136,2]
[357214328,1743900646664,-508.575437,0.00030136,2]
[357214329,1743900646675,-559.02268331,0.00030136,2]
[357214330,1743900646684,-504.494281,0.00030136,2]
[357214331,1743900646694,-521.86833224,0.00030136,2]
[357214332,1743900646703,-509.17841323,0.00030136,2]
[357214333,1743900646713,-505.03284088,0.00030136,2]
[357214334,1743900646722,-542.54846224,0.00030136,2]
[357214335,1743900646732,-524.41066558,0.00030136,2]
[357214336,1743900646742,-581.96342767,0.00030136,2]
[357214337,1743900646751,-500.0,0.00030136,2]
[357214338,1743900646760,-500.0,0.00030136,2]
[357214339,1743900646770,-500.67855421,0.00030136,2]
[357214340,1743900646780,-532.87314997,0.00030136,2]
[357214341,1743900646789,-500.0,0.00030136,2]
[357214342,1743900646799,-504.96369823,0.00030136,2]
[357214343,1743900646810,-540.54561273,0.00030136,2]
[357214344,1743900646820,-234.83323864,0.00030136,2]
[357214345,1743900646829,-500.0,0.00030136,2]
[357214346,1743900646838,-505.30049898,0.00030136,2]
[357214347,1743900646847,-514.57602688,0.00030136,2]
[357214348,1743900646856,-500.0,0.00030136,2]
[357214349,1743900646865,-503.41124588,0.00030136,2]
[357214350,1743900646875,-200.0,0.00030136,2]
[357214351,1743900646887,-500.0,0.00030136,2]
[357214352,1743900646896,-500.0,0.00030136,2]
[357214353,1743900646905,-500.0,0.00030136,2]
[357214354,1743900646915,-500.0,0.00030136,2]
[357214355,1743900646924,-513.54661152,0.00030136,2]
[357214356,1743900646934,-500.0,0.00030136,2]
[357214357,1743900646943,-512.40046317,0.00030136,2]
[357214358,1743900646952,-523.87806112,0.00030136,2]
[357214359,1743900646960,-599.85567057,0.00030136,2]
[357214360,1743900646970,-500.0,0.00030136,2]
[357214361,1743900646979,-500.0,0.00030136,2]
[357214362,1743900646988,-545.25900712,0.00030136,2]
[357214363,1743900646997,-520.1683368,0.00030136,2]
[357214364,1743900647007,-519.69574521,0.00030136,2]
[357214365,1743900647016,-632.64546975,0.00030136,2]
[357214366,1743900647026,-502.78583314,0.00030136,2]
[357214367,1743900647036,-522.58493637,0.00030136,2]
[357214368,1743900647046,-518.8387677,0.00030136,2]
[357214369,1743900647055,-500.0,0.00030136,2]
[357214370,1743900647065,-527.54950411,0.00030136,2]
[357214371,1743900647074,-553.55508174,0.00030136,2]
[357214372,1743900647083,-501.1530157,0.00030136,2]
[357214373,1743900647093,-507.39865486,0.00030136,2]
[357214374,1743900647102,-474.52215222,0.00030136,2]
[357214375,1743900647112,-523.60423056,0.00030136,2]
[357214376,1743900647121,-509.31081528,0.00030136,2]
[357214377,1743900647131,-234.89760435,0.00030136,2]
[357214378,1743900647141,-248.69231634,0.00030136,2]
[357214379,1743900647150,-509.89907188,0.00030136,2]
[357214380,1743900647160,-514.32793704,0.00030136,2]
[357214381,1743900647169,-500.0,0.00030136,2]
[357214382,1743900647179,-500.0,0.00030136,2]
[357214383,1743900647190,-500.0,0.00030136,2]
[357214384,1743900647199,-516.19949884,0.00030136,2]
[357214385,1743900647209,-500.0,0.00030136,2]
[357214386,1743900647218,-536.92936381,0.00030136,2]
[357214387,1743900647227,-500.0,0.00030136,2]
[357214388,1743900647237,-523.24389719,0.00030136,2]
[357214389,1743900647247,-500.0,0.00030136,2]
[357214390,1743900647257,-505.05791151,0.00030136,2]
[357214391,1743900647266,-500.0,0.00030136,2]
[357214392,1743900647276,-500.0,0.00030136,2]
[357214393,1743900647286,-515.62264226,0.00030136,2]
[357214394,1743900647295,-1589.15,0.00030136,2]
[357214395,1743900647304,-500.0,0.00030136,2]
[357214396,1743900647314,-517.51374422,0.00030136,2]
[357214397,1743900647325,-513.02589585,0.00030136,2]
[357214398,1743900647335,-500.0,0.00030136,2]
[357214399,1743900647344,-513.34422479,0.00030136,2]
[357214400,1743900647353,-500.0,0.00030136,2]
[357214401,1743900647362,-500.0,0.00030136,2]
[357214402,1743900647371,-500.0,0.00030136,2]
[357214403,1743900647380,-538.0436804,0.00030136,2]
[357214404,1743900647389,-500.0,0.00030136,2]
[357214405,1743900647398,-512.76819733,0.00030136,2]
[357214406,1743900647407,-510.4517231,0.00030136,2]
[357214407,1743900647416,-518.40917943,0.00030136,2]
[357214408,1743900647426,-500.0,0.00030136,2]
[357214409,1743900647435,-530.6628282,0.00030136,2]
[357214410,1743900647445,-500.0,0.00030136,2]
[357214411,1743900647454,-505.51659077,0.00030136,2]
[357214412,1743900647464,-509.50283218,0.00030136,2]
[357214413,1743900647473,-500.0,0.00030136,2]
[357214414,1743900647482,-536.57893565,0.00030136,2]
[357214415,1743900647492,-347.1818745,0.00030136,2]
[357214416,1743900647501,-512.31855339,0.00030136,2]
[357214417,1743900647510,-500.0,0.00030136,2]
[357214418,1743900647519,-500.0,0.00030136,2]
[357214419,1743900647528,-529.14735315,0.00030136,2]
[357214420,1743900647537,-500.0,0.00030136,2]
[357214421,1743900647547,-518.25149328,0.00030136,2]
[357214422,1743900647556,-500.0,0.00030136,2]
[357214423,1743900647565,-541.92229321,0.00030136,2]
[357214424,1743900647574,-500.0,0.00030136,2]
[357214425,1743900647583,-500.0,0.00030136,2]
[357214426,1743900647593,-500.0,0.00030136,2]
[357214427,1743900647602,-500.0,0.00030136,2]
[357214428,1743900647611,-500.0,0.00030136,2]
[357214429,1743900647621,-500.0,0.00030136,2]
[357214430,1743900647630,-500.0,0.00030136,2]
[357214431,1743900647640,-528.15791886,0.00030136,2]
[357214432,1743900647784,-500.0,0.00030136,2]
[357214433,1743900647795,-500.0,0.00030136,2]
[357214434,1743900647805,-500.0,0.00030136,2]
[357214435,1743900647814,-500.0,0.00030136,2]
[357214436,1743900647823,-500.0,0.00030136,2]
[357214437,1743900647833,-500.0,0.00030136,2]
[357214438,1743900647842,-500.0,0.00030136,2]
[357214439,1743900647851,-538.83709021,0.00030136,2]
[357214440,1743900647860,-500.0,0.00030136,2]
[357214441,1743900647869,-514.85034388,0.00030136,2]
[357214442,1743900647878,-500.0,0.00030136,2]
[357214443,1743900647888,-500.0,0.00030136,2]
[357214444,1743900647897,-506.6707021,0.00030136,2]
[357214445,1743900647906,-500.0,0.00030136,2]
[357214446,1743900647915,-500.0,0.00030136,2]
[357214447,1743900647924,-500.0,0.00030136,2]
[357214448,1743900647933,-500.0,0.00030136,2]
[357214449,1743900647943,-500.0,0.00030136,2]
[357214450,1743900647951,-501.30516266,0.00030136,2]
[357214451,1743900647961,-500.0,0.00030136,2]
[357214452,1743900647971,-500.0,0.00030136,2]
[357214453,1743900647980,-500.0,0.00030136,2]
[357214454,1743900647989,-500.0,0.00030136,2]
[357214455,1743900647998,-500.0,0.00030136,2]
[357214456,1743900648008,-524.7388339,0.00030136,2]
[357214457,1743900648017,-500.0,0.00030136,2]
[357214458,1743900648027,-500.0,0.00030136,2]
[357214459,1743900648036,-500.0,0.00030136,2]
[357214460,1743900648045,-500.0,0.00030136,2]
[357214461,1743900648055,-500.0,0.00030136,2]
[357214462,1743900648064,-500.0,0.00030136,2]
[357214463,1743900648073,-500.0,0.00030136,2]
[357214464,1743900648083,-500.0,0.00030136,2]
[357214465,1743900648092,-500.0,0.00030136,2]
[357214466,1743900648102,-500.0,0.00030136,2]
[357214467,1743900648111,-500.0,0.00030136,2]
[357214468,1743900648120,-500.0,0.00030136,2]
[357214469,1743900648129,-500.000002,0.00030136,2]
[357214470,1743900648139,-500.0,0.00030136,2]
[357214471,1743900648148,-500.0,0.00030136,2]
[357214472,1743900648158,-500.0,0.00030136,2]
[357214473,1743900648168,-500.0,0.00030136,2]
[357214474,1743900648178,-501.73088653,0.00030136,2]
[357214475,1743900648191,-500.0,0.00030136,2]
[357214476,1743900648201,-500.0,0.00030136,2]
[357214477,1743900648211,-500.0,0.00030136,2]
[357214478,1743900648220,-500.0,0.00030136,2]
[357214479,1743900648230,-500.0,0.00030136,2]
[357214480,1743900648240,-500.45104923,0.00030136,2]
[357214481,1743900648249,-500.0,0.00030136,2]
[357214482,1743900648259,-500.0,0.00030136,2]
[357214483,1743900648269,-347.18922894,0.00030136,2]
[357214484,1743900648278,-500.0,0.00030136,2]
[357214485,1743900648288,-504.12228323,0.00030136,2]
[357214486,1743900648297,-500.0,0.00030136,2]
[357214487,1743900648306,-637.97156898,0.00030136,2]
[357214488,1743900648316,-500.0,0.00030136,2]
[357214489,1743900648325,-500.0,0.00030136,2]
[357214490,1743900648334,-500.0,0.00030136,2]
[357214491,1743900648343,-474.08121199,0.00030136,2]
[357214492,1743900648352,-500.0,0.00030136,2]
[357214493,1743900648363,-500.0,0.00030136,2]
[357214494,1743900648373,-500.0,0.00030136,2]
[357214495,1743900648383,-500.0,0.00030136,2]
[357214496,1743900648393,-241.45718178,0.00030136,2]
[357214497,1743900648402,-500.0,0.00030136,2]
[357214498,1743900648411,-500.0,0.00030136,2]
[357214499,1743900648420,-500.0,0.00030136,2]
[357214500,1743900648430,-500.0,0.00030136,2]
[357214501,1743900648439,-509.52156393,0.00030136,2]
[357214502,1743900648449,-500.0,0.00030136,2]
[357214503,1743900648458,-500.0,0.00030136,2]
[357214504,1743900648468,-500.0,0.00030136,2]
[357214505,1743900648478,-500.0,0.00030136,2]